bitfinex-derivatives/quotes_SOLF0:USTF0_20241218
["timestamp","ask_amount","ask_price","bid_price","bid_amount"]
[1734498446301,5.56456068,217.34,217.22,2.48]
[1734498446703,2.3008,217.32,217.26,2.3013]
[1734498447200,5.56456068,217.34,217.26,2.3013]
[1734498447504,2.3009,217.31,217.26,2.3013]
[1734498449003,2.3009,217.31,217.17,7.23021784]
[1734498449004,8.95259432,217.41,217.27,2.48]
[1734498449205,16.88557532,217.41,217.28,4.0523]
[1734498449401,16.88557532,217.41,217.28,6.9919]
[1734498450799,2.3001,217.39,217.28,6.9919]
[1734498451003,14.40557532,217.41,217.28,6.9919]
[1734498451705,2.48,217.4,217.28,6.9919]
[1734498452006,2.3007,217.34,217.28,6.9919]
[1734498452204,8.95259432,217.38,217.28,6.9919]
[1734498452407,8.95259432,217.38,217.28,9.2931]
[1734498452906,2.3003,217.37,217.31,2.3009]
[1734498453304,14.40557532,217.41,217.28,6.9919]
[1734498453610,2.3004,217.36,217.29,2.3011]
[1734498453906,2.3004,217.36,217.28,6.9919]
[1734498455201,2.3004,217.36,217.31,2.3009]
[1734498455408,5.452981,217.41,217.3,8.95259432]
[1734498456004,2.3001,217.39,217.33,2.3006]
[1734498456205,2.3001,217.39,217.34,2.48]
[1734498458706,5.452981,217.41,217.08,6.29544531]
[1734498458707,2.48,217.4,217.08,6.29544531]
[1734498458906,8.95259432,217.34,217.18,4.5425]
[1734498459102,8.95259432,217.31,217.19,2.48]
[1734498459308,8.95259432,217.31,217.2,2.48]
[1734498459810,2.3014,217.26,217.2,2.48]
[1734498460206,2.302,217.21,217.14,2.3026]
[1734498460409,8.95259432,217.25,217.1,11.43259432]
[1734498460609,2.48,217.24,217.1,11.43259432]
[1734498461410,2.3022,217.19,217.12,2.3029]
[1734498461603,2.3022,217.19,217.05,2.48]
[1734498461604,8.95259432,217.19,217.05,2.48]
[1734498461804,11.43259432,217.19,217.05,2.48]
[1734498462612,2.3025,217.16,217.06,8.95259432]
[1734498463010,2.3028,217.14,217.05,8.10038615]
[1734498464009,2.3025,217.16,217.05,8.10038615]
[1734498464404,2.48,217.18,217.05,8.10038615]
[1734498464609,2.48,217.18,216.96,1.5368]
[1734498464610,14.34463545,217.17,216.96,1.5368]
[1734498464813,6.68221148,217.16,216.97,16.82463545]
[1734498465014,6.68221148,217.16,217.01,5.46223676]
[1734498465211,13.55575889,217.16,217.01,5.46223676]
[1734498465507,13.55575889,217.16,216.99,4.7842]
[1734498465508,6.86935426,217.15,216.99,4.7842]
[1734498465707,14.34463545,217.13,216.99,4.7842]
[1734498465908,2.48,217.12,216.99,4.7842]
[1734498467206,2.48,217.12,217.0,2.48]
[1734498467508,2.3034,217.08,217.0,2.48]
[1734498468311,14.34463545,217.13,217.0,8.10659044]
[1734498468508,2.3029,217.12,217.0,8.10659044]
[1734498469216,2.48,217.16,217.01,14.34463545]
[1734498469423,2.48,217.16,217.0,5.62659044]
[1734498469714,2.48,217.16,217.02,2.3039]
[1734498469912,2.3029,217.13,217.01,14.34463545]
[1734498471012,2.3029,217.13,217.06,2.3035]
[1734498471315,15.79773545,217.21,217.07,2.48]
[1734498471316,6.65789565,217.2,217.07,2.48]
[1734498471515,18.27773545,217.21,217.07,2.48]
[1734498471713,2.3025,217.16,217.09,2.3032]
[1734498472217,18.27773545,217.21,217.07,2.48]
[1734498472218,14.34463545,217.21,217.07,2.48]
[1734498472416,14.34463545,217.21,217.08,4.5027]
[1734498472812,2.3024,217.17,217.1,2.3031]
[1734498473012,14.34463545,217.21,217.08,4.5027]
[1734498474418,2.3024,217.17,217.11,2.303]
[1734498475716,2.3024,217.17,217.08,4.5027]
[1734498475717,2.3024,217.17,217.1,2.3031]
[1734498476613,14.34463545,217.21,217.08,4.5027]
[1734498477615,2.3026,217.15,217.09,2.3032]
[1734498478123,14.34463545,217.21,217.08,4.5027]
[1734498479020,2.3024,217.18,217.08,4.5027]
[1734498479220,14.34463545,217.21,217.08,4.5027]
[1734498479416,14.34463545,217.17,217.08,1.5594]
[1734498480221,2.3028,217.14,217.08,3.8627]
[1734498481015,2.3029,217.12,217.08,1.5594]
[1734498481219,14.34463545,217.17,217.02,1.505]
[1734498481518,14.34463545,217.17,217.03,2.48]
[1734498481519,15.92003545,217.17,217.03,2.48]
[1734498481724,2.3033,217.09,217.03,2.48]
[1734498482319,2.48,217.13,217.02,1.505]
[1734498482625,2.48,217.13,216.95,14.34463545]
[1734498482626,14.34463545,217.12,216.99,2.48]
[1734498482837,14.34463545,217.08,216.96,1.5509]
[1734498483125,2.48,217.07,216.96,1.5509]
[1734498484123,2.3042,217.0,216.96,1.5509]
[1734498484318,2.48,217.02,216.83,3.0486]
[1734498484523,2.48,217.01,216.84,4.0309]
[1734498485021,2.48,217.01,216.89,5.53595176]
[1734498485224,2.48,217.01,216.89,2.48]
[1734498485423,14.34463545,217.0,216.84,1.5509]
[1734498485821,14.34463545,217.0,216.87,0.6717]
[1734498486022,2.3051,216.91,216.87,0.6717]
[1734498487030,2.3054,216.89,216.87,0.6717]
[1734498488327,2.3059,216.84,216.78,3.0344]
[1734498488629,2.48,216.9,216.78,3.0344]
[1734498489023,2.3056,216.87,216.78,3.0344]
[1734498489227,2.48,216.9,216.78,3.0344]
[1734498490418,2.3056,216.87,216.78,3.0344]
[1734498490626,14.34463545,216.88,216.78,3.0344]
[1734498490819,14.34463545,216.88,216.77,2.48]
[1734498491627,2.3066,216.77,216.68,2.3075]
[1734498491828,2.3066,216.77,216.67,2.48]
[1734498492128,16.82463545,216.8,216.69,5.52265649]
[1734498492129,14.34463545,216.8,216.69,5.52265649]
[1734498492730,2.48,216.83,216.73,2.307]
[1734498492926,16.82463545,216.84,216.69,5.52265649]
[1734498493131,14.34463545,216.8,216.69,5.52265649]
[1734498493334,14.34463545,216.76,216.6,1.4642]
[1734498493626,19.94538004,216.92,216.54,15.82173545]
[1734498493627,14.34463545,216.72,216.54,15.82173545]
[1734498493823,2.308,216.65,216.56,2.3088]
[1734498494421,2.308,216.65,216.55,1.4642]
[1734498494623,14.34463545,216.64,216.27,4.6238]
[1734498494826,14.34463545,216.64,216.41,7.76308659]
[1734498495021,14.34463545,216.64,216.49,2.3096]
[1734498495326,14.34463545,216.56,216.44,5.51200146]
[1734498495531,2.48,216.55,216.44,5.51200146]
[1734498496133,16.65353545,216.56,216.44,5.51200146]
[1734498496134,14.34463545,216.56,216.44,5.51200146]
[1734498496427,14.34463545,216.56,216.38,1.4901]
[1734498496428,2.3094,216.52,216.38,1.4901]
[1734498496633,2.3094,216.52,216.39,2.48]
[1734498496829,2.48,216.53,216.44,2.3101]
[1734498497028,2.48,216.55,216.39,2.48]
[1734498497224,2.48,216.55,216.4,3.3290871]
[1734498497441,1.4648,216.7,216.44,14.34463545]
[1734498497625,2.3081,216.64,216.45,6.34196128]
[1734498497829,14.34463545,216.66,216.48,14.34463545]
[1734498498123,14.34463545,216.66,216.56,2.3088]
[1734498498524,22.33052988,216.66,216.56,2.3088]
[1734498498932,14.34463545,216.66,216.53,2.48]
[1734498499232,14.34463545,216.66,216.31,13.83]
[1734498499233,14.34463545,216.63,216.43,5.44183069]
[1734498499425,2.48,216.62,216.46,4.4935]
[1734498499830,2.48,216.62,216.47,2.5]
[1734498500331,2.3086,216.59,216.51,2.3094]
[1734498501128,2.48,216.62,216.51,2.3094]
[1734498501333,2.48,216.62,216.43,5.44183069]
[1734498501334,14.34463545,216.58,216.47,2.3098]
[1734498501534,2.5,216.57,216.43,5.44183069]
[1734498501838,2.5,216.57,216.44,3.9436]
[1734498502735,2.5,216.6,216.44,3.9436]
[1734498503332,14.34463545,216.62,216.45,14.34463545]
[1734498503529,5.45953436,216.68,216.44,3.9436]
[1734498503530,5.45953436,216.68,216.49,14.34463545]
[1734498503735,3.9648,216.7,216.44,3.9436]
[1734498503736,2.5,216.7,216.53,14.34463545]
[1734498503932,5.61597115,216.7,216.54,5.5447]
[1734498504334,5.61597115,216.7,216.55,1.5628]
[1734498504536,7.92337115,216.7,216.62,2.3082]
[1734498504842,5.61597115,216.7,216.62,2.3082]
[1734498505935,5.61597115,216.7,216.61,2.5]
[1734498506836,2.3068,216.76,216.61,2.5]
[1734498507038,5.57162648,216.75,216.61,2.5]
[1734498507236,5.57162648,216.75,216.64,2.3079]
[1734498507436,2.3073,216.71,216.65,2.5]
[1734498507838,2.3073,216.71,216.64,2.3079]
[1734498508043,2.3074,216.7,216.65,2.5]
[1734498508342,2.3074,216.7,216.64,2.5]
[1734498508736,2.3075,216.69,216.64,2.5]
[1734498509534,2.3076,216.68,216.64,2.5]
[1734498509739,2.3076,216.68,216.6,2.3083]
[1734498509937,2.3076,216.68,216.61,2.5]
[1734498510138,2.3076,216.68,216.6,2.5]
[1734498510837,16.84463545,216.73,216.6,2.5]
[1734498511437,16.84463545,216.73,216.58,2.5]
[1734498512041,16.84463545,216.73,216.63,2.3081]
[1734498513142,16.84463545,216.73,216.58,2.5]
[1734498513341,14.34463545,216.69,216.58,2.5]
[1734498513645,2.3078,216.66,216.58,2.5]
[1734498514646,2.3078,216.66,216.59,2.3085]
[1734498514842,2.5,216.68,216.54,3.0447]
[1734498515044,1.4462,216.68,216.54,5.5447]
[1734498515247,14.34463545,216.73,216.54,5.5447]
[1734498515842,14.34463545,216.73,216.56,14.34463545]
[1734498516240,2.3072,216.72,216.65,2.3079]
[1734498516440,14.34463545,216.73,216.64,2.5]
[1734498518546,2.3074,216.7,216.64,2.5]
[1734498518949,2.3074,216.7,216.64,4.808]
[1734498519448,2.3074,216.7,216.64,2.5]
[1734498519646,14.34463545,216.73,216.64,4.808]
[1734498519647,2.3073,216.72,216.64,4.808]
[1734498519946,5.57162648,216.75,216.64,2.5]
[1734498520151,5.57162648,216.75,216.65,1.4928]
[1734498520542,7.87852648,216.75,216.69,2.3075]
[1734498520747,7.87852648,216.75,216.65,1.4928]
[1734498520947,5.57162648,216.75,216.65,1.4928]
[1734498521144,14.34463545,216.73,216.6,2.5]
[1734498521352,2.5,216.72,216.59,2.5]
[1734498521550,2.3076,216.68,216.62,2.3082]
[1734498521752,2.5,216.72,216.59,2.5]
[1734498521948,2.5,216.72,216.6,1.5859]
[1734498522455,2.5,216.72,216.59,2.5]
[1734498522751,2.3077,216.67,216.61,2.3083]
[1734498523556,14.34463545,216.73,216.59,2.5]
[1734498523851,2.5,216.72,216.59,4.8085]
[1734498524149,14.34463545,216.69,216.57,1.4928]
[1734498524347,14.34463545,216.69,216.55,0.5264]
[1734498524348,14.34463545,216.65,216.55,0.5264]
[1734498524551,16.84463545,216.65,216.55,0.5264]
[1734498525251,2.5,216.65,216.58,2.3086]
[1734498526256,2.5,216.65,216.55,0.5264]
[1734498526650,2.3085,216.59,216.55,0.5264]
[1734498526849,14.34463545,216.62,216.55,0.5264]
[1734498527258,2.3089,216.56,216.55,0.5264]
[1734498529246,14.34463545,216.62,216.55,0.5264]
[1734498530059,2.54,216.63,216.55,0.5264]
[1734498530249,2.3085,216.6,216.55,0.5264]
[1734498530454,2.54,216.63,216.55,0.5264]
[1734498530753,7.92809352,216.64,216.56,2.3088]
[1734498530955,2.3081,216.64,216.55,0.5264]
[1734498531256,2.308,216.64,216.58,2.3086]
[1734498531557,2.308,216.64,216.58,4.8486]
[1734498532152,14.34463545,216.7,216.59,2.3085]
[1734498532354,14.34463545,216.7,216.58,2.54]
[1734498532553,2.3079,216.66,216.6,2.3084]
[1734498533953,2.3077,216.68,216.62,2.3082]
[1734498534153,14.34463545,216.7,216.59,2.9861]
[1734498535054,1.5449,216.74,216.59,2.9861]
[1734498535055,14.34463545,216.74,216.59,2.9861]
[1734498535454,16.88463545,216.74,216.59,2.9861]
[1734498536359,2.3074,216.7,216.64,2.308]
[1734498536560,2.3074,216.7,216.64,4.848]
[1734498536955,14.34463545,216.74,216.64,2.54]
[1734498537161,2.3073,216.72,216.64,2.54]
[1734498537660,14.34463545,216.74,216.64,2.54]
[1734498537661,2.3071,216.73,216.64,2.54]
[1734498539361,14.34463545,216.74,216.59,2.9861]
[1734498539567,14.34463545,216.7,216.6,2.54]
[1734498539958,2.3078,216.66,216.6,2.54]
[1734498540354,14.34463545,216.7,216.6,2.54]
[1734498540560,2.3077,216.67,216.59,5.2946]
[1734498540769,6.70897544,216.69,216.6,2.54]
[1734498541066,14.34463545,216.7,216.6,2.54]
[1734498541256,2.3077,216.67,216.6,2.54]
[1734498541455,14.34463545,216.7,216.6,2.54]
[1734498541864,14.34463545,216.74,216.6,2.54]
[1734498542166,14.34463545,216.74,216.67,2.3077]
[1734498543263,2.3072,216.73,216.67,2.3077]
[1734498543462,14.34463545,216.74,216.66,2.54]
[1734498543660,6.70973412,216.73,216.66,2.54]
[1734498543959,14.34463545,216.74,216.66,2.54]
[1734498544165,14.34463545,216.74,216.66,4.8478]
[1734498544461,14.34463545,216.74,216.66,2.54]
[1734498544662,14.34463545,216.74,216.68,2.3076]
[1734498545063,14.34463545,216.78,216.69,2.3074]
[1734498545254,13.6153685,216.77,216.66,2.54]
[1734498545461,6.90615069,216.76,216.66,2.54]
[1734498545663,13.61573281,216.77,216.7,2.3074]
[1734498546664,6.70958212,216.77,216.72,2.3072]
[1734498546865,6.70958212,216.77,216.71,2.54]
[1734498547061,2.3063,216.8,216.74,2.3069]
[1734498547862,2.3065,216.79,216.72,4.8471]
[1734498548058,13.61303202,216.81,216.72,2.3071]
[1734498548260,14.34463545,216.78,216.7,2.54]
[1734498548462,6.70871958,216.77,216.7,2.54]
[1734498548661,13.61404466,216.77,216.7,2.54]
[1734498549266,13.61404466,216.77,216.7,4.8474]
[1734498549767,2.3069,216.75,216.7,2.54]
[1734498550356,9.00029969,216.76,216.68,2.54]
[1734498550564,9.00029969,216.76,216.68,2.3076]
[1734498550761,9.00029969,216.73,216.68,2.3076]
[1734498550967,9.00029969,216.73,216.6,1.5685]
[1734498551162,9.00029969,216.73,216.61,2.54]
[1734498551970,11.30749969,216.73,216.67,2.3076]
[1734498553361,11.30749969,216.73,216.66,2.54]
[1734498553565,9.00029969,216.76,216.66,2.54]
[1734498553763,9.00029969,216.79,216.66,2.54]
[1734498553963,9.00029969,216.79,216.75,2.3068]
[1734498555267,11.30679969,216.79,216.73,2.307]
[1734498555859,9.00029969,216.79,216.73,2.307]
[1734498556060,9.00029969,216.79,216.72,2.54]
[1734498556561,22.59932901,216.79,216.72,2.54]
[1734498556761,6.70154239,216.78,216.72,2.54]
[1734498556964,9.00029969,216.79,216.72,2.54]
[1734498557171,18.71116287,216.79,216.72,2.54]
[1734498557468,13.5991845,216.78,216.72,2.54]
[1734498557971,2.3068,216.76,216.72,2.54]
[1734498558167,6.89764211,216.78,216.72,2.54]
[1734498558365,9.00029969,216.79,216.72,2.54]
[1734498559368,5.42652837,216.81,216.68,2.52]
[1734498559369,9.00029969,216.76,216.68,2.52]
[1734498561265,2.3071,216.73,216.68,4.8276]
[1734498561975,2.3071,216.73,216.68,2.3076]
[1734498563065,2.52,216.79,216.68,2.52]
[1734498563269,16.11367535,216.79,216.68,2.52]
[1734498563467,9.00029969,216.8,216.69,2.9197]
[1734498563864,9.00029969,216.8,216.69,4.3653]
[1734498564272,2.3066,216.78,216.73,2.307]
[1734498564473,9.00029969,216.8,216.73,2.52]
[1734498565373,2.3065,216.79,216.74,2.3069]
[1734498565674,9.00029969,216.8,216.73,2.52]
[1734498566275,9.00029969,216.8,216.69,4.3653]
[1734498566576,2.3067,216.77,216.72,2.52]
[1734498567171,2.3067,216.77,216.73,2.3071]
[1734498568375,9.00029969,216.8,216.73,2.3071]
[1734498569371,22.58509625,216.8,216.73,2.3071]
[1734498569577,9.00029969,216.8,216.73,2.3071]
[1734498569767,15.69483724,216.8,216.73,2.3071]
[1734498569969,9.00029969,216.8,216.73,2.3071]
[1734498570672,2.3067,216.78,216.73,2.3071]
[1734498571570,9.00029969,216.8,216.75,2.3069]
[1734498571571,11.30659969,216.8,216.75,2.3069]
[1734498571776,9.00029969,216.77,216.69,4.3653]
[1734498572175,9.00029969,216.77,216.69,1.4429]
[1734498572378,9.00029969,216.77,216.68,2.52]
[1734498572679,22.59950364,216.77,216.68,2.52]
[1734498572889,13.59944132,216.76,216.68,2.52]
[1734498573582,13.59944132,216.76,216.68,4.8275]
[1734498573583,2.307,216.74,216.68,4.8275]
[1734498573774,2.307,216.74,216.68,2.3075]
[1734498574482,13.59944132,216.76,216.66,11.52029969]
[1734498574685,2.52,216.79,216.66,11.52029969]
[1734498574881,22.61699231,216.8,216.66,11.52029969]
[1734498575072,13.61669262,216.79,216.66,11.52029969]
[1734498575276,13.61669262,216.79,216.69,9.00029969]
[1734498575477,167.0549011,216.83,216.7,2.9253]
[1734498575678,23.35207695,216.82,216.71,2.52]
[1734498575881,13.62365268,216.81,216.72,9.00029969]
[1734498576086,158.05460141,216.84,216.73,1.5464]
[1734498576376,23.34933614,216.83,216.73,1.5464]
[1734498576570,13.62190368,216.82,216.75,9.00029969]
[1734498576771,13.62190368,216.82,216.76,2.52]
[1734498576971,9.02032804,216.81,216.76,4.8268]
[1734498577277,167.0549011,216.84,216.76,2.52]
[1734498577577,23.35351339,216.83,216.76,2.52]
[1734498577774,9.00029969,216.81,216.74,2.52]
[1734498577971,32.35381308,216.81,216.74,2.52]
[1734498578176,23.35351339,216.8,216.74,2.52]
[1734498578380,23.35351339,216.79,216.74,2.52]
[1734498578574,2.3067,216.77,216.74,2.52]
[1734498579982,9.22187001,216.77,216.74,2.52]
[1734498580177,2.3069,216.75,216.7,3.9969]
[1734498580386,2.3069,216.75,216.7,4.8274]
[1734498581986,2.3071,216.73,216.7,2.52]
[1734498583986,167.0549011,216.78,216.66,3.8314]
[1734498583987,2.3073,216.72,216.66,3.8314]
[1734498584187,2.3073,216.72,216.66,6.3514]
[1734498584390,13.63589307,216.74,216.66,1.5237]
[1734498584583,193.18805742,216.74,216.64,2.92061]
[1734498584787,23.38226456,216.73,216.64,2.92061]
[1734498584982,13.63589307,216.72,216.64,2.92061]
[1734498585178,13.63589307,216.71,216.64,2.92061]
[1734498585384,13.63589307,216.7,216.64,2.92061]
[1734498585685,9.00029969,216.72,216.64,0.40061]
[1734498586090,53.89560337,216.72,216.64,0.40061]
[1734498586285,23.39550633,216.71,216.64,0.40061]
[1734498586487,9.00029969,216.72,216.64,0.40061]
[1734498586488,2.3075,216.69,216.64,0.40061]
[1734498586782,6.92336189,216.69,216.64,0.40061]
[1734498586985,13.64945504,216.71,216.64,0.40061]
[1734498587186,2.3075,216.69,216.64,0.40061]
[1734498588683,6.72609315,216.71,216.64,0.40061]
[1734498588982,23.3940239,216.74,216.64,0.40061]
[1734498589188,13.64828014,216.73,216.64,0.40061]
[1734498589387,23.39468981,216.72,216.64,0.40061]
[1734498589589,13.64828014,216.71,216.64,0.40061]
[1734498589790,2.3078,216.67,216.64,0.40061]
[1734498590485,2.3078,216.66,216.64,0.40061]
[1734498590791,13.64794092,216.69,216.64,0.40061]
[1734498591091,9.74623443,216.68,216.64,0.40061]
[1734498591290,13.64794092,216.67,216.64,0.40061]
[1734498591793,13.64794092,216.66,216.64,0.40061]
[1734498592191,13.64794092,216.66,216.64,0.18981]
[1734498592494,16.12794092,216.66,216.53,2.48]
[1734498592689,9.00029969,216.62,216.53,2.48]
[1734498593088,2.3086,216.59,216.53,2.48]
[1734498593789,2.3086,216.59,216.53,4.7892]
[1734498595890,4.0251,216.66,216.53,4.7892]
[1734498595891,9.00029969,216.65,216.53,2.48]
[1734498596195,22.6166605,216.65,216.54,1.456]
[1734498596490,9.00029969,216.65,216.54,1.456]
[1734498596696,15.90454806,216.65,216.54,1.456]
[1734498596894,9.00029969,216.65,216.54,1.456]
[1734498597092,6.70674779,216.65,216.54,1.456]
[1734498597297,2.48,216.67,216.54,1.456]
[1734498597595,9.1843244,216.67,216.54,1.456]
[1734498597793,16.08606395,216.67,216.54,1.456]
[1734498598195,2.48,216.67,216.54,1.456]
[1734498598401,2.3081,216.64,216.57,2.3087]
[1734498598599,2.3081,216.64,216.54,1.456]
[1734498599198,9.00029969,216.68,216.55,9.00029969]
[1734498599199,2.3079,216.66,216.55,9.00029969]
[1734498599995,2.308,216.65,216.59,2.3085]
[1734498600698,2.3082,216.63,216.58,2.48]
[1734498601701,2.3082,216.63,216.58,4.7887]
[1734498602095,2.3082,216.63,216.58,2.48]
[1734498602293,9.00029969,216.65,216.54,3.936]
[1734498602601,9.00029969,216.62,216.51,2.48]
[1734498602798,11.48029969,216.62,216.5,2.48]
[1734498603011,2.3087,216.58,216.53,2.3092]
[1734498603302,11.48029969,216.62,216.5,2.48]
[1734498603508,2.3089,216.56,216.5,2.3095]
[1734498603808,9.00029969,216.56,216.46,2.48]
[1734498604007,9.00029969,216.56,216.45,4.6129]
[1734498604304,9.00029969,216.53,216.45,1.5161]
[1734498604509,9.00029969,216.53,216.44,0.33069]
[1734498604510,2.48,216.52,216.44,0.33069]
[1734498605208,2.3098,216.48,216.44,0.33069]
[1734498605700,2.48,216.52,216.44,0.33069]
[1734498606199,2.3095,216.51,216.44,0.33069]
[1734498606509,2.48,216.52,216.44,0.33069]
[1734498606705,11.48029969,216.56,216.44,0.33069]
[1734498606899,2.3094,216.51,216.44,0.33069]
[1734498607503,16.95198908,216.56,216.44,0.33069]
[1734498607706,2.48,216.55,216.44,0.33069]
[1734498608205,2.3093,216.52,216.44,2.64079]
[1734498608406,2.48,216.55,216.44,2.64079]
[1734498608610,2.48,216.55,216.44,0.33069]
[1734498608808,2.48,216.55,216.45,2.3101]
[1734498609412,14.47198908,216.56,216.44,0.33069]
[1734498609610,16.95198908,216.56,216.44,0.33069]
[1734498609913,2.3091,216.55,216.49,2.3096]
[1734498610910,7.95168939,216.56,216.44,0.33069]
[1734498610911,2.3098,216.48,216.44,0.33069]
[1734498612206,9.00029969,216.53,216.44,0.33069]
[1734498612413,14.47198908,216.56,216.45,2.48]
[1734498613013,2.3092,216.54,216.48,2.3097]
[1734498614614,14.47198908,216.56,216.45,2.48]
[1734498614918,14.47198908,216.56,216.49,2.3096]
[1734498616619,2.309,216.55,216.49,2.3096]
[1734498617414,9.00029969,216.59,216.46,9.00029969]
[1734498617815,9.00029969,216.59,216.47,1.4538]
[1734498618013,9.00029969,216.59,216.52,2.3093]
[1734498618217,9.00029969,216.59,216.5,2.48]
[1734498619311,9.00029969,216.59,216.5,4.7895]
[1734498619312,2.3089,216.56,216.5,4.7895]
[1734498619516,2.3089,216.56,216.49,2.48]
[1734498619716,9.00029969,216.57,216.48,1.5482]
[1734498619913,9.00029969,216.54,216.47,2.48]
[1734498620312,9.00029969,216.54,216.44,0.33069]
[1734498620512,2.3095,216.51,216.45,2.31]
[1734498620716,9.00029969,216.51,216.44,0.33069]
[1734498621418,2.3098,216.48,216.44,0.33069]
[1734498621723,9.00029969,216.48,216.44,0.33069]
[1734498621912,9.00029969,216.48,216.41,2.3105]
[1734498621913,9.00029969,216.45,216.27,2.48]
[1734498622118,9.00029969,216.39,216.29,1.5267]
[1734498622918,2.3108,216.38,216.29,1.5267]
[1734498623121,9.00029969,216.39,216.29,1.5267]
[1734498623316,11.48029969,216.39,216.29,1.5267]
[1734498623823,2.3109,216.38,216.29,3.8385]
[1734498624123,2.48,216.39,216.29,3.8385]
[1734498624822,14.45115298,216.4,216.32,2.3114]
[1734498625023,2.3106,216.41,216.29,1.5267]
[1734498625213,14.45115298,216.44,216.29,1.5267]
[1734498625416,14.45115298,216.44,216.36,2.311]
[1734498625417,2.3103,216.43,216.36,2.311]
[1734498625818,2.3103,216.43,216.33,2.48]
[1734498626012,2.3104,216.42,216.33,2.48]
[1734498626214,2.3104,216.42,216.34,2.3112]
[1734498626419,2.3104,216.42,216.33,2.48]
[1734498626620,16.93115298,216.44,216.33,2.48]
[1734498626919,2.3104,216.42,216.34,2.3111]
[1734498627322,2.3104,216.42,216.33,2.48]
[1734498628421,2.3104,216.42,216.35,2.3111]
[1734498630022,2.3104,216.42,216.33,2.48]
[1734498630023,5.59408091,216.43,216.33,2.48]
[1734498630229,7.90438091,216.43,216.36,2.311]
[1734498630620,14.45115298,216.47,216.33,2.48]
[1734498630818,16.93115298,216.47,216.33,2.48]
[1734498631129,1.4204,216.53,216.33,2.48]
[1734498631130,2.48,216.49,216.33,2.48]
[1734498631332,2.48,216.49,216.34,14.45115298]
[1734498631524,2.3097,216.49,216.43,2.3103]
[1734498631825,14.45115298,216.67,216.47,14.45115298]
[1734498632025,5.4126126,216.65,216.48,4.0453]
[1734498632322,2.3082,216.63,216.48,4.0453]
[1734498632724,16.01345298,216.7,216.51,14.45115298]
[1734498633424,2.3076,216.69,216.61,2.3083]
[1734498633626,5.45031184,216.69,216.62,2.48]
[1734498633825,5.45031184,216.69,216.51,14.45115298]
[1734498633826,5.45031184,216.69,216.63,2.48]
[1734498634026,2.3077,216.68,216.56,2.3089]
[1734498634322,5.45031184,216.69,216.51,14.45115298]
[1734498634323,5.45031184,216.69,216.57,2.48]
[1734498635128,14.45115298,216.7,216.57,2.48]
[1734498635329,66.79524849,216.71,216.57,2.48]
[1734498635625,66.79524849,216.71,216.58,1.566]
[1734498636529,72.47380012,216.71,216.6,2.3084]
[1734498637426,2.3076,216.68,216.6,2.3084]
[1734498637628,2.3076,216.68,216.61,2.3083]
[1734498637823,2.3076,216.68,216.62,2.48]
[1734498638028,2.3075,216.7,216.62,2.48]
[1734498638225,72.47380012,216.71,216.62,2.48]
[1734498638625,66.79524849,216.71,216.62,2.48]
[1734498638935,5.41921739,216.73,216.62,2.48]
[1734498639229,2.3074,216.7,216.63,2.48]
[1734498640038,5.41921739,216.73,216.63,2.48]
[1734498640233,19.87037037,216.73,216.58,1.566]
[1734498640532,14.45115298,216.69,216.59,2.48]
[1734498640934,2.308,216.65,216.59,2.48]
[1734498641134,19.87037037,216.73,216.59,2.48]
[1734498641939,19.87037037,216.73,216.58,1.566]
[1734498642231,6.67022007,216.72,216.59,2.48]
[1734498642433,2.48,216.71,216.59,2.48]
[1734498642638,2.48,216.71,216.59,4.7886]
[1734498642832,2.48,216.71,216.59,2.48]